[Event "*** Titled Tuesday Blitz"]
[Site "Chess.com"]
[Date "2021.04.27"]
[Round "2"]
[White "NateSolon"]
[Black "harlem4brew"]
[Result "1-0"]
[WhiteElo "2651"]
[BlackElo "2371"]
[TimeControl "180+1"]
[EndTime "10:19:08 PDT"]
[Termination "NateSolon won by resignation"]

1. d4 {[%clk 0:03:00.9]} 1... Nf6 {[%clk 0:02:59.1]} 2. c4 {[%clk 0:03:00.9]}
2... d5 {[%clk 0:02:58.5]} 3. cxd5 {[%clk 0:03:00.6]} 3... Nxd5 {[%clk
0:02:57.8]} 4. e4 {[%clk 0:03:00.8]} 4... Nb6 {[%clk 0:02:57.2]} 5. Nf3 {[%clk
0:03:00.2]} 5... g6 {[%clk 0:02:56.7]} 6. Be2 {[%clk 0:02:59]} 6... Bg7 {[%clk
0:02:56.4]} 7. O-O {[%clk 0:02:59.2]} 7... O-O {[%clk 0:02:55.5]} 8. Nc3 {[%clk
0:02:58.7]} 8... c6 {[%clk 0:02:54]} 9. h3 {[%clk 0:02:56.4]} 9... N8d7 {[%clk
0:02:53.5]} 10. Bf4 {[%clk 0:02:54.1]} 10... h6 {[%clk 0:02:49.6]} 11. Qd2
{[%clk 0:02:52.5]} 11... g5 {[%clk 0:02:48]} 12. Bg3 {[%clk 0:02:47.7]} 12...
Qe8 {[%clk 0:02:45.5]} 13. Rad1 {[%clk 0:02:46.2]} 13... e5 {[%clk 0:02:43.3]}
14. Rfe1 {[%clk 0:02:44.2]} 14... exd4 {[%clk 0:02:41.6]} 15. Nxd4 {[%clk
0:02:45.1]} 15... Ne5 {[%clk 0:02:41.6]} 16. b3 {[%clk 0:02:32.2]} 16... Qe7
{[%clk 0:02:35.6]} 17. f4 {[%clk 0:02:28.8]} 17... gxf4 {[%clk 0:02:23.8]} 18.
Bxf4 {[%clk 0:02:29.7]} 18... Rd8 {[%clk 0:02:09.3]} 19. Qe3 {[%clk 0:02:22.6]}
19... Rd6 {[%clk 0:01:44.9]} 20. Kh1 {[%clk 0:02:06.2]} 20... Bd7 {[%clk
0:01:41.8]} 21. Nf5 {[%clk 0:01:59.1]} 21... Bxf5 {[%clk 0:01:40.4]} 22. exf5
{[%clk 0:02:00]} 22... Rxd1 {[%clk 0:01:29.5]} 23. Bxd1 {[%clk 0:01:57.8]} 23...
Re8 {[%clk 0:01:12.8]} 24. Bxh6 {[%clk 0:01:54.6]} 24... Qf6 {[%clk 0:01:07.6]}
25. Bxg7 {[%clk 0:01:45.1]} 25... Kxg7 {[%clk 0:01:08.5]} 26. Bc2 {[%clk
0:01:35.2]} 26... Re7 {[%clk 0:00:58.8]} 27. Qg3+ {[%clk 0:01:29.4]} 27... Kf8
{[%clk 0:00:54.9]} 28. Rd1 {[%clk 0:01:23.1]} 28... Ned7 {[%clk 0:00:47]} 29.
Qf3 {[%clk 0:01:09.7]} 29... Qe5 {[%clk 0:00:37.1]} 30. Ne4 {[%clk 0:01:06.5]}
30... Nd5 {[%clk 0:00:32.4]} 31. Bb1 {[%clk 0:00:52]} 31... N7f6 {[%clk
0:00:30.6]} 32. Nxf6 {[%clk 0:00:51.2]} 32... Qxf6 {[%clk 0:00:31.5]} 33. Bd3
{[%clk 0:00:35.7]} 33... Re3 {[%clk 0:00:31.1]} 34. Qf2 {[%clk 0:00:29.1]} 34...
Re5 {[%clk 0:00:24.5]} 35. Re1 {[%clk 0:00:25.1]} 35... b6 {[%clk 0:00:21.3]}
36. Kh2 {[%clk 0:00:18.5]} 36... Nb4 {[%clk 0:00:18.6]} 37. Bb1 {[%clk
0:00:16.7]} 37... Rxe1 {[%clk 0:00:17.2]} 38. Qxe1 {[%clk 0:00:17.6]} 38... Nd5
{[%clk 0:00:17.7]} 39. Qg3 {[%clk 0:00:17.1]} 39... Ne7 {[%clk 0:00:14.7]} 40.
Qf4 {[%clk 0:00:15.9]} 40... Nd5 {[%clk 0:00:14.6]} 41. Qf3 {[%clk 0:00:15.1]}
41... Qe5+ {[%clk 0:00:14.3]} 42. Qg3 {[%clk 0:00:15.1]} 42... Qb2 {[%clk
0:00:14]} 43. Be4 {[%clk 0:00:14.8]} 43... Qxa2 {[%clk 0:00:11.7]} 44. Bxd5
{[%clk 0:00:13.3]} 44... cxd5 {[%clk 0:00:12.6]} 45. f6 {[%clk 0:00:13.6]} 45...
Qb2 {[%clk 0:00:11.9]} 46. Qd6+ {[%clk 0:00:13.3]} 46... Kg8 {[%clk 0:00:12.1]}
47. Qd8+ {[%clk 0:00:13.1]} 47... Kh7 {[%clk 0:00:12.5]} 48. Qe7 {[%clk
0:00:13.9]} 48... Kg6 {[%clk 0:00:12.4]} 49. Qxa7 {[%clk 0:00:12]} 49... Qxf6
{[%clk 0:00:13]} 50. Qd7 {[%clk 0:00:11.4]} 50... Qe6 {[%clk 0:00:13.1]} 51. Qc7
{[%clk 0:00:10.8]} 51... d4 {[%clk 0:00:12.5]} 52. Qg3+ {[%clk 0:00:10.7]} 52...
Kh7 {[%clk 0:00:11]} 53. Qd3+ {[%clk 0:00:10.8]} 53... Kg7 {[%clk 0:00:10.7]}
54. Qxd4+ {[%clk 0:00:11.3]} 54... f6 {[%clk 0:00:11.6]} 55. Qc4 {[%clk
0:00:11.1]} 55... Qe4 {[%clk 0:00:11.6]} 56. Qxe4 {[%clk 0:00:10.7]} 1-0

[Event "*** Titled Tuesday Blitz"]
[Site "Chess.com"]
[Date "2021.04.27"]
[Round "2"]
[White "Julianos82"]
[Black "Alexander_Moskalenko"]
[Result "0-1"]
[WhiteElo "2324"]
[BlackElo "2753"]
[TimeControl "180+1"]
[EndTime "10:19:08 PDT"]
[Termination "Alexander_Moskalenko won on time"]

1. d4 {[%clk 0:03:00.9]} 1... d5 {[%clk 0:02:43.5]} 2. Bf4 {[%clk 0:02:59]} 2...
c6 {[%clk 0:02:44.4]} 3. e3 {[%clk 0:02:57.7]} 3... Qb6 {[%clk 0:02:35.5]} 4.
Bd3 {[%clk 0:02:55.6]} 4... Qxb2 {[%clk 0:02:34.6]} 5. Nd2 {[%clk 0:02:55.4]}
5... Qc3 {[%clk 0:02:35.1]} 6. Ne2 {[%clk 0:02:44]} 6... Qa5 {[%clk 0:02:24.3]}
7. O-O {[%clk 0:02:43.4]} 7... Bg4 {[%clk 0:02:23]} 8. f3 {[%clk 0:02:39.5]}
8... Bh5 {[%clk 0:02:22.3]} 9. Rb1 {[%clk 0:02:34.1]} 9... b5 {[%clk 0:02:21.8]}
10. c4 {[%clk 0:02:01.9]} 10... dxc4 {[%clk 0:00:54.8]} 11. Bxc4 {[%clk
0:01:38.9]} 11... e6 {[%clk 0:00:53.3]} 12. Bb3 {[%clk 0:01:26.8]} 12... Nf6
{[%clk 0:00:52.2]} 13. Rc1 {[%clk 0:01:20]} 13... Ba3 {[%clk 0:00:51.1]} 14. Rc2
{[%clk 0:01:13.3]} 14... Bg6 {[%clk 0:00:50.9]} 15. e4 {[%clk 0:01:10.2]} 15...
Nd5 {[%clk 0:00:51.2]} 16. exd5 {[%clk 0:01:06.5]} 16... Bxc2 {[%clk 0:00:50.5]}
17. Qxc2 {[%clk 0:01:06.6]} 17... cxd5 {[%clk 0:00:48.8]} 18. Bxb8 {[%clk
0:01:03]} 18... Rxb8 {[%clk 0:00:48.5]} 19. Qc6+ {[%clk 0:01:03.1]} 19... Ke7
{[%clk 0:00:48]} 20. Qc2 {[%clk 0:00:51.7]} 20... Rhc8 {[%clk 0:00:46.7]} 21.
Qd3 {[%clk 0:00:49.5]} 21... g6 {[%clk 0:00:16]} 22. f4 {[%clk 0:00:49.2]} 22...
Bb4 {[%clk 0:00:12.5]} 23. Nf3 {[%clk 0:00:48.2]} 23... Bd6 {[%clk 0:00:12.1]}
24. Ne5 {[%clk 0:00:44.3]} 24... Qb4 {[%clk 0:00:13]} 25. Qh3 {[%clk 0:00:39.3]}
25... Bxe5 {[%clk 0:00:09.8]} 26. fxe5 {[%clk 0:00:40.2]} 26... Rf8 {[%clk
0:00:08.7]} 27. Qh4+ {[%clk 0:00:37.2]} 27... Ke8 {[%clk 0:00:09.6]} 28. Qg5
{[%clk 0:00:32.4]} 28... a5 {[%clk 0:00:10.5]} 29. h3 {[%clk 0:00:24.9]} 29...
Rc8 {[%clk 0:00:02.7]} 30. Rc1 {[%clk 0:00:23.3]} 30... Rxc1+ {[%clk 0:00:02]}
31. Qxc1 {[%clk 0:00:24.2]} 31... Kd7 {[%clk 0:00:02.4]} 32. Qc3 {[%clk
0:00:16]} 32... Qxc3 {[%clk 0:00:02.1]} 33. Nxc3 {[%clk 0:00:16.9]} 33... Kc6
{[%clk 0:00:01.7]} 34. a4 {[%clk 0:00:16.3]} 34... bxa4 {[%clk 0:00:02]} 35.
Bxa4+ {[%clk 0:00:16]} 35... Kc7 {[%clk 0:00:02.1]} 36. Kf2 {[%clk 0:00:16.3]}
36... f6 {[%clk 0:00:02.5]} 37. Ke3 {[%clk 0:00:15.8]} 37... fxe5 {[%clk
0:00:02.7]} 38. dxe5 {[%clk 0:00:16.7]} 38... Rf5 {[%clk 0:00:03.2]} 39. Kd4
{[%clk 0:00:15.6]} 39... Rf4+ {[%clk 0:00:03.7]} 40. Kd3 {[%clk 0:00:15]} 40...
Rb4 {[%clk 0:00:03.3]} 41. Bd1 {[%clk 0:00:11.7]} 41... h5 {[%clk 0:00:03]} 42.
g4 {[%clk 0:00:10.7]} 42... h4 {[%clk 0:00:02.4]} 43. g5 {[%clk 0:00:10.2]}
43... Kd7 {[%clk 0:00:01.4]} 44. Bf3 {[%clk 0:00:04.3]} 44... Ke7 {[%clk
0:00:02.3]} 45. Ne2 {[%clk 0:00:04.3]} 45... Rb3+ {[%clk 0:00:02]} 46. Nc3
{[%clk 0:00:03.9]} 46... a4 {[%clk 0:00:02.3]} 47. Kc2 {[%clk 0:00:03.5]} 47...
Rb4 {[%clk 0:00:01.6]} 48. Ne2 {[%clk 0:00:01.4]} 48... Rf4 {[%clk 0:00:02.5]}
0-1

[Event "*** Titled Tuesday Blitz"]
[Site "Chess.com"]
[Date "2021.04.27"]
[Round "2"]
[White "Alex-11211"]
[Black "FeketeBarika"]
[Result "0-1"]
[WhiteElo "2430"]
[BlackElo "2250"]
[TimeControl "180+1"]
[EndTime "10:19:08 PDT"]
[Termination "FeketeBarika won by resignation"]

1. e4 {[%clk 0:03:00.9]} 1... e6 {[%clk 0:03:00.9]} 2. Nc3 {[%clk 0:03:00.9]}
2... d5 {[%clk 0:03:01.8]} 3. Nf3 {[%clk 0:03:01.5]} 3... d4 {[%clk 0:03:01.7]}
4. Ne2 {[%clk 0:03:01.4]} 4... c5 {[%clk 0:03:02.6]} 5. c3 {[%clk 0:03:01.8]}
5... Nc6 {[%clk 0:02:58.8]} 6. cxd4 {[%clk 0:03:01.5]} 6... cxd4 {[%clk
0:02:57.8]} 7. Qa4 {[%clk 0:03:02.1]} 7... Bc5 {[%clk 0:02:41.9]} 8. b4 {[%clk
0:03:01.7]} 8... Bb6 {[%clk 0:02:39.4]} 9. b5 {[%clk 0:02:52.7]} 9... Nce7
{[%clk 0:02:22.9]} 10. Bb2 {[%clk 0:02:51.8]} 10... Bd7 {[%clk 0:01:57.1]} 11.
Bxd4 {[%clk 0:02:46.7]} 11... Nf6 {[%clk 0:01:50.7]} 12. Nc3 {[%clk 0:02:31.4]}
12... a6 {[%clk 0:01:40.9]} 13. Bxb6 {[%clk 0:02:05.2]} 13... Qxb6 {[%clk
0:01:40.2]} 14. Qb3 {[%clk 0:02:04.8]} 14... Rc8 {[%clk 0:01:31.5]} 15. bxa6
{[%clk 0:01:57.1]} 15... Qxb3 {[%clk 0:01:26.3]} 16. axb3 {[%clk 0:01:58]} 16...
bxa6 {[%clk 0:01:26.8]} 17. Bxa6 {[%clk 0:01:52.8]} 17... Rb8 {[%clk 0:01:25.8]}
18. Bc4 {[%clk 0:01:50.6]} 18... O-O {[%clk 0:01:10.4]} 19. Ne5 {[%clk
0:01:31.9]} 19... Nc6 {[%clk 0:01:03.8]} 20. Nxc6 {[%clk 0:01:29]} 20... Bxc6
{[%clk 0:01:03.1]} 21. f3 {[%clk 0:01:29.5]} 21... Nd7 {[%clk 0:00:59.4]} 22. d4
{[%clk 0:01:13.4]} 22... Rfc8 {[%clk 0:00:41]} 23. O-O {[%clk 0:00:56.9]} 23...
Nb6 {[%clk 0:00:36.2]} 24. Rfd1 {[%clk 0:00:28.3]} 24... Be8 {[%clk 0:00:30.8]}
25. d5 {[%clk 0:00:17.6]} 25... Nxc4 {[%clk 0:00:28.8]} 26. bxc4 {[%clk
0:00:17.4]} 26... Rxc4 {[%clk 0:00:28.1]} 27. Ne2 {[%clk 0:00:14.7]} 27... exd5
{[%clk 0:00:28]} 28. Rxd5 {[%clk 0:00:13.5]} 28... Rc2 {[%clk 0:00:27]} 29. Nd4
{[%clk 0:00:12.9]} 29... Rd2 {[%clk 0:00:25.6]} 30. Nf5 {[%clk 0:00:12.1]} 30...
Rxd5 {[%clk 0:00:24.7]} 31. Ne7+ {[%clk 0:00:11.5]} 31... Kf8 {[%clk 0:00:25.1]}
32. Nxd5 {[%clk 0:00:11.7]} 32... Bc6 {[%clk 0:00:25.3]} 33. Ne3 {[%clk
0:00:10.3]} 33... Rb3 {[%clk 0:00:24.2]} 34. Kf2 {[%clk 0:00:07.2]} 34... g6
{[%clk 0:00:23.8]} 35. Rc1 {[%clk 0:00:04.7]} 35... Bb5 {[%clk 0:00:23.5]} 36.
Nd5 {[%clk 0:00:04.8]} 36... Kg7 {[%clk 0:00:23.1]} 37. Kg3 {[%clk 0:00:05.2]}
37... Rb2 {[%clk 0:00:23.2]} 38. Rc7 {[%clk 0:00:04.4]} 38... h5 {[%clk
0:00:22.9]} 39. Ne3 {[%clk 0:00:04.7]} 39... Rb3 {[%clk 0:00:20.8]} 40. Kf4
{[%clk 0:00:05]} 40... g5+ {[%clk 0:00:19.5]} 41. Kxg5 {[%clk 0:00:05.3]} 41...
Rxe3 {[%clk 0:00:20.1]} 42. Kxh5 {[%clk 0:00:05.3]} 42... Bf1 {[%clk 0:00:19.5]}
43. Rc5 {[%clk 0:00:05.1]} 43... Kf6 {[%clk 0:00:15.5]} 44. Rf5+ {[%clk
0:00:04.5]} 44... Ke6 {[%clk 0:00:15.9]} 45. Rg5 {[%clk 0:00:03.7]} 45... Re2
{[%clk 0:00:16.2]} 46. g3 {[%clk 0:00:03.2]} 46... Bg2 {[%clk 0:00:16.4]} 47. f4
{[%clk 0:00:03.2]} 47... Bxe4 {[%clk 0:00:16.4]} 48. Re5+ {[%clk 0:00:03.1]}
48... Kf6 {[%clk 0:00:16.9]} 49. Kg4 {[%clk 0:00:03]} 49... Kg7 {[%clk
0:00:15.8]} 50. h4 {[%clk 0:00:02.7]} 50... f6 {[%clk 0:00:15.9]} 51. Re6 {[%clk
0:00:02.1]} 51... Bf3+ {[%clk 0:00:15.4]} 52. Kf5 {[%clk 0:00:02.2]} 52... Bg4+
{[%clk 0:00:15.8]} 53. Kxg4 {[%clk 0:00:02.8]} 53... Rxe6 {[%clk 0:00:16.7]} 0-1

[Event "*** Titled Tuesday Blitz"]
[Site "Chess.com"]
[Date "2021.04.27"]
[Round "2"]
[White "VerdeNotte"]
[Black "scandalgod"]
[Result "1-0"]
[WhiteElo "2898"]
[BlackElo "2583"]
[TimeControl "180+1"]
[EndTime "10:19:10 PDT"]
[Termination "VerdeNotte won by checkmate"]

1. Nf3 {[%clk 0:03:00.9]} 1... d5 {[%clk 0:02:53.8]} 2. b3 {[%clk 0:03:01.2]}
2... Bf5 {[%clk 0:02:51.3]} 3. Bb2 {[%clk 0:03:01.3]} 3... e6 {[%clk 0:02:50.8]}
4. d3 {[%clk 0:03:01]} 4... Nf6 {[%clk 0:02:50]} 5. Nbd2 {[%clk 0:03:01]} 5...
c5 {[%clk 0:02:47.4]} 6. Nh4 {[%clk 0:03:00.9]} 6... Bg6 {[%clk 0:02:46.9]} 7.
Nxg6 {[%clk 0:02:59.5]} 7... hxg6 {[%clk 0:02:45.8]} 8. e4 {[%clk 0:02:59.7]}
8... Nc6 {[%clk 0:02:45.8]} 9. g3 {[%clk 0:02:56.4]} 9... Be7 {[%clk 0:02:32.5]}
10. Bg2 {[%clk 0:02:56.2]} 10... O-O {[%clk 0:02:30]} 11. exd5 {[%clk
0:02:52.6]} 11... exd5 {[%clk 0:02:27.6]} 12. O-O {[%clk 0:02:52.8]} 12... Qd7
{[%clk 0:02:26.8]} 13. Re1 {[%clk 0:02:52.7]} 13... Rfe8 {[%clk 0:02:22.4]} 14.
Nf3 {[%clk 0:02:51.2]} 14... Bd6 {[%clk 0:02:20.4]} 15. d4 {[%clk 0:02:47.9]}
15... Ne4 {[%clk 0:02:12.9]} 16. dxc5 {[%clk 0:02:44]} 16... Bxc5 {[%clk
0:02:04]} 17. Nd4 {[%clk 0:02:44.2]} 17... Rad8 {[%clk 0:01:55.9]} 18. a3 {[%clk
0:02:40.8]} 18... a6 {[%clk 0:01:50.3]} 19. Re2 {[%clk 0:02:32.5]} 19... Ba7
{[%clk 0:01:45.5]} 20. h3 {[%clk 0:02:13]} 20... Qc7 {[%clk 0:01:42.5]} 21. Kh2
{[%clk 0:02:08.5]} 21... Qb6 {[%clk 0:01:34.9]} 22. Nxc6 {[%clk 0:01:56]} 22...
bxc6 {[%clk 0:01:32.7]} 23. Qe1 {[%clk 0:01:51.6]} 23... Nd6 {[%clk 0:01:18.3]}
24. Rd1 {[%clk 0:01:26.4]} 24... Rxe2 {[%clk 0:01:02.9]} 25. Qxe2 {[%clk
0:01:27.3]} 25... Qxf2 {[%clk 0:00:56.2]} 26. Qxf2 {[%clk 0:01:27.6]} 26... Bxf2
{[%clk 0:00:55.2]} 27. c4 {[%clk 0:01:10.7]} 27... Nf5 {[%clk 0:00:34.5]} 28.
cxd5 {[%clk 0:01:10.7]} 28... Bxg3+ {[%clk 0:00:29.3]} 29. Kg1 {[%clk 0:01:11]}
29... Ne3 {[%clk 0:00:26.7]} 30. Rd3 {[%clk 0:01:10.9]} 30... Nxg2 {[%clk
0:00:25.9]} 31. Kxg2 {[%clk 0:00:56.5]} 31... Bb8 {[%clk 0:00:20.8]} 32. Re3
{[%clk 0:00:44.1]} 32... cxd5 {[%clk 0:00:20.1]} 33. Bd4 {[%clk 0:00:44.5]}
33... Bd6 {[%clk 0:00:16.7]} 34. b4 {[%clk 0:00:44.1]} 34... Kf8 {[%clk
0:00:16.9]} 35. Rc3 {[%clk 0:00:43.2]} 35... f6 {[%clk 0:00:16.3]} 36. Rc6
{[%clk 0:00:42.4]} 36... Be5 {[%clk 0:00:16.6]} 37. Bc5+ {[%clk 0:00:41.8]}
37... Kg8 {[%clk 0:00:16.6]} 38. Rxa6 {[%clk 0:00:41]} 38... d4 {[%clk
0:00:17.1]} 39. Kf1 {[%clk 0:00:40.7]} 39... d3 {[%clk 0:00:17.3]} 40. Ke1
{[%clk 0:00:40.9]} 40... d2+ {[%clk 0:00:17.1]} 41. Kd1 {[%clk 0:00:41.3]} 41...
Bf4 {[%clk 0:00:17.4]} 42. Re6 {[%clk 0:00:39.6]} 42... Ra8 {[%clk 0:00:16.4]}
43. Be3 {[%clk 0:00:30.7]} 43... Be5 {[%clk 0:00:13.1]} 44. Kxd2 {[%clk
0:00:23.7]} 44... Rxa3 {[%clk 0:00:12.9]} 45. b5 {[%clk 0:00:24]} 45... Ra2+
{[%clk 0:00:11.5]} 46. Kd3 {[%clk 0:00:21.8]} 46... Ra3+ {[%clk 0:00:11.6]} 47.
Ke4 {[%clk 0:00:20]} 47... Rb3 {[%clk 0:00:11.5]} 48. b6 {[%clk 0:00:19.7]}
48... Kf7 {[%clk 0:00:11.8]} 49. Rc6 {[%clk 0:00:19.8]} 49... Ke7 {[%clk
0:00:11.5]} 50. Rc8 {[%clk 0:00:15.7]} 50... Kd7 {[%clk 0:00:11.2]} 51. Rg8
{[%clk 0:00:15.6]} 51... Rb4+ {[%clk 0:00:10.7]} 52. Kd5 {[%clk 0:00:15.1]}
52... Rb3 {[%clk 0:00:09.1]} 53. Rxg7+ {[%clk 0:00:14.8]} 53... Kc8 {[%clk
0:00:07.7]} 54. Kc6 {[%clk 0:00:13.7]} 54... Rc3+ {[%clk 0:00:06.9]} 55. Bc5
{[%clk 0:00:13.7]} 55... Kd8 {[%clk 0:00:05.7]} 56. Rg8# {[%clk 0:00:13.4]} 1-0

[Event "*** Titled Tuesday Blitz"]
[Site "Chess.com"]
[Date "2021.04.27"]
[Round "2"]
[White "DFeco"]
[Black "Macron20hTF1"]
[Result "0-1"]
[WhiteElo "2274"]
[BlackElo "2483"]
[TimeControl "180+1"]
[EndTime "10:19:10 PDT"]
[Termination "Macron20hTF1 won on time"]

1. c4 {[%clk 0:03:00.9]} 1... g6 {[%clk 0:02:55.7]} 2. g3 {[%clk 0:03:00.4]}
2... Bg7 {[%clk 0:02:56.6]} 3. Bg2 {[%clk 0:02:59.3]} 3... f5 {[%clk 0:02:56.2]}
4. Nc3 {[%clk 0:02:57.5]} 4... Nf6 {[%clk 0:02:56.6]} 5. d3 {[%clk 0:02:56.4]}
5... d6 {[%clk 0:02:56.4]} 6. e4 {[%clk 0:02:56.7]} 6... Nc6 {[%clk 0:02:52]} 7.
Nge2 {[%clk 0:02:53.2]} 7... O-O {[%clk 0:02:51.6]} 8. O-O {[%clk 0:02:51.9]}
8... e5 {[%clk 0:02:25.1]} 9. Nd5 {[%clk 0:02:46.6]} 9... h6 {[%clk 0:02:09.8]}
10. Rb1 {[%clk 0:02:44.3]} 10... g5 {[%clk 0:01:57.7]} 11. exf5 {[%clk 0:02:41]}
11... Bxf5 {[%clk 0:01:58.6]} 12. b4 {[%clk 0:02:36.7]} 12... Qd7 {[%clk
0:01:48.4]} 13. b5 {[%clk 0:02:33]} 13... Nd8 {[%clk 0:01:46.6]} 14. Ne3 {[%clk
0:02:29.7]} 14... Bh3 {[%clk 0:01:43.2]} 15. Nc3 {[%clk 0:02:17.6]} 15... Bxg2
{[%clk 0:01:41.2]} 16. Kxg2 {[%clk 0:02:16.4]} 16... Ne6 {[%clk 0:01:38.8]} 17.
Kg1 {[%clk 0:01:59.1]} 17... Nd4 {[%clk 0:01:35.1]} 18. f3 {[%clk 0:01:54.2]}
18... Rf7 {[%clk 0:01:31.5]} 19. Bb2 {[%clk 0:01:51.2]} 19... Raf8 {[%clk
0:01:31.5]} 20. Ne2 {[%clk 0:01:35.1]} 20... Qh3 {[%clk 0:00:45.2]} 21. Nxd4
{[%clk 0:01:07.4]} 21... exd4 {[%clk 0:00:46.1]} 22. Bxd4 {[%clk 0:01:02.9]}
22... Nd5 {[%clk 0:00:33.8]} 23. Nxd5 {[%clk 0:00:42.2]} 23... Bxd4+ {[%clk
0:00:33.7]} 24. Kh1 {[%clk 0:00:42.8]} 24... Re8 {[%clk 0:00:27.1]} 25. Qd2
{[%clk 0:00:31.6]} 25... c6 {[%clk 0:00:22.5]} 26. bxc6 {[%clk 0:00:31.1]} 26...
bxc6 {[%clk 0:00:23.4]} 27. Nb4 {[%clk 0:00:29.6]} 27... Be3 {[%clk 0:00:15.4]}
28. Qc2 {[%clk 0:00:27.4]} 28... Qd7 {[%clk 0:00:14.3]} 29. Rbe1 {[%clk
0:00:24.2]} 29... Rfe7 {[%clk 0:00:14.6]} 30. Qd1 {[%clk 0:00:15.5]} 30... Bc5
{[%clk 0:00:14.6]} 31. Nc2 {[%clk 0:00:14.7]} 31... d5 {[%clk 0:00:13.3]} 32.
Rxe7 {[%clk 0:00:14.2]} 32... Rxe7 {[%clk 0:00:13]} 33. d4 {[%clk 0:00:12.5]}
33... Bd6 {[%clk 0:00:11.2]} 34. c5 {[%clk 0:00:12.5]} 34... Bc7 {[%clk
0:00:11.8]} 35. Re1 {[%clk 0:00:12.2]} 35... Qe8 {[%clk 0:00:11.8]} 36. Rxe7
{[%clk 0:00:11.8]} 36... Qxe7 {[%clk 0:00:12.7]} 37. Qe1 {[%clk 0:00:12.1]}
37... Qf7 {[%clk 0:00:12.7]} 38. Qe2 {[%clk 0:00:09.5]} 38... Bd8 {[%clk
0:00:11.2]} 39. Qd3 {[%clk 0:00:09.1]} 39... Bf6 {[%clk 0:00:11.5]} 40. a4
{[%clk 0:00:07.9]} 40... Bg7 {[%clk 0:00:11.6]} 41. Qe3 {[%clk 0:00:06.4]} 41...
Qf6 {[%clk 0:00:09.8]} 42. Kg2 {[%clk 0:00:05.8]} 42... h5 {[%clk 0:00:09.7]}
43. h3 {[%clk 0:00:05.1]} 43... a5 {[%clk 0:00:07.2]} 44. Qd3 {[%clk 0:00:04.5]}
44... Bf8 {[%clk 0:00:06.3]} 45. Ne3 {[%clk 0:00:04.3]} 45... Bg7 {[%clk
0:00:06.5]} 46. Nf5 {[%clk 0:00:04.4]} 46... Bf8 {[%clk 0:00:04.3]} 47. Ne3
{[%clk 0:00:03.2]} 47... Bg7 {[%clk 0:00:04.3]} 48. Nf5 {[%clk 0:00:03.2]} 48...
Bf8 {[%clk 0:00:04.8]} 49. g4 {[%clk 0:00:01.7]} 49... h4 {[%clk 0:00:04.3]} 50.
Qe3 {[%clk 0:00:01.3]} 50... Kh7 {[%clk 0:00:03.2]} 0-1

[Event "*** Titled Tuesday Blitz"]
[Site "Chess.com"]
[Date "2021.04.27"]
[Round "2"]
[White "david_alex"]
[Black "PavelChernomordik"]
[Result "0-1"]
[WhiteElo "2096"]
[BlackElo "2382"]
[TimeControl "180+1"]
[EndTime "10:19:11 PDT"]
[Termination "PavelChernomordik won by checkmate"]

1. d4 {[%clk 0:03:00.9]} 1... g6 {[%clk 0:02:59.2]} 2. Nf3 {[%clk 0:03:00.5]}
2... Bg7 {[%clk 0:02:59.1]} 3. g3 {[%clk 0:03:01.2]} 3... d6 {[%clk 0:02:58.9]}
4. Bg2 {[%clk 0:03:01.7]} 4... Nf6 {[%clk 0:02:59.2]} 5. O-O {[%clk 0:03:02]}
5... O-O {[%clk 0:02:59]} 6. b3 {[%clk 0:03:01.3]} 6... c6 {[%clk 0:02:58.2]} 7.
Bb2 {[%clk 0:03:01.2]} 7... a5 {[%clk 0:02:58.3]} 8. a4 {[%clk 0:03:00.4]} 8...
Na6 {[%clk 0:02:57.8]} 9. Re1 {[%clk 0:02:58.3]} 9... Bf5 {[%clk 0:02:55.8]} 10.
Nfd2 {[%clk 0:02:51.9]} 10... Nb4 {[%clk 0:02:48.8]} 11. e4 {[%clk 0:02:51.4]}
11... Bg4 {[%clk 0:02:48.2]} 12. f3 {[%clk 0:02:51.3]} 12... Bd7 {[%clk
0:02:46]} 13. Nf1 {[%clk 0:02:43.2]} 13... b5 {[%clk 0:02:35.9]} 14. c3 {[%clk
0:02:42.3]} 14... Na6 {[%clk 0:02:35]} 15. axb5 {[%clk 0:02:41]} 15... cxb5
{[%clk 0:02:34.4]} 16. Ne3 {[%clk 0:02:40.9]} 16... Nc7 {[%clk 0:02:30.7]} 17.
Nd2 {[%clk 0:02:35]} 17... e5 {[%clk 0:02:23.8]} 18. f4 {[%clk 0:02:27.3]} 18...
exf4 {[%clk 0:02:17.6]} 19. gxf4 {[%clk 0:02:28.2]} 19... Nh5 {[%clk 0:02:17.1]}
20. Rf1 {[%clk 0:02:18.2]} 20... b4 {[%clk 0:02:05.4]} 21. cxb4 {[%clk 0:02:12]}
21... axb4 {[%clk 0:02:04]} 22. Rxa8 {[%clk 0:02:11.7]} 22... Qxa8 {[%clk
0:01:59.5]} 23. Ndc4 {[%clk 0:02:07.4]} 23... Nb5 {[%clk 0:01:57.1]} 24. Nb6
{[%clk 0:01:47.9]} 24... Qd8 {[%clk 0:01:52.9]} 25. Nxd7 {[%clk 0:01:48.2]}
25... Qxd7 {[%clk 0:01:52.6]} 26. Nc4 {[%clk 0:01:42.6]} 26... Nc3 {[%clk
0:01:48]} 27. Qd3 {[%clk 0:01:31.8]} 27... Qa7 {[%clk 0:01:43.4]} 28. Bxc3
{[%clk 0:01:19.6]} 28... bxc3 {[%clk 0:01:42.6]} 29. e5 {[%clk 0:01:20.3]} 29...
dxe5 {[%clk 0:01:33.9]} 30. fxe5 {[%clk 0:01:20.1]} 30... Rd8 {[%clk 0:01:31.6]}
31. Nd6 {[%clk 0:01:00.4]} 31... Bxe5 {[%clk 0:01:30.1]} 32. Nxf7 {[%clk
0:00:38.8]} 32... Rxd4 {[%clk 0:01:17.9]} 33. Qe3 {[%clk 0:00:23.2]} 33... Nf4
{[%clk 0:00:44.1]} 34. Nxe5 {[%clk 0:00:08.3]} 34... Nxg2 {[%clk 0:00:32.8]} 35.
Qf2 {[%clk 0:00:05.1]} 35... Nf4 {[%clk 0:00:24.1]} 36. Nc6 {[%clk 0:00:03.6]}
36... Nh3+ {[%clk 0:00:22]} 37. Kg2 {[%clk 0:00:03.6]} 37... Nxf2 {[%clk
0:00:19.3]} 38. Nxa7 {[%clk 0:00:04.3]} 38... Ne4 {[%clk 0:00:18.2]} 39. Rc1
{[%clk 0:00:03.1]} 39... Rd2+ {[%clk 0:00:17.1]} 40. Kf3 {[%clk 0:00:03.2]}
40... Ng5+ {[%clk 0:00:12.7]} 41. Kf4 {[%clk 0:00:03.7]} 41... Ne6+ {[%clk
0:00:11.6]} 42. Ke5 {[%clk 0:00:04.1]} 42... Re2+ {[%clk 0:00:11.3]} 43. Kd5
{[%clk 0:00:03.6]} 43... Nf4+ {[%clk 0:00:10.1]} 44. Kd4 {[%clk 0:00:03.9]}
44... c2 {[%clk 0:00:09.2]} 45. Nb5 {[%clk 0:00:03.4]} 45... Rxh2 {[%clk
0:00:05.4]} 46. Na3 {[%clk 0:00:03.2]} 46... Ne2+ {[%clk 0:00:04.9]} 47. Kd3
{[%clk 0:00:02]} 47... Nxc1+ {[%clk 0:00:05.8]} 48. Kc3 {[%clk 0:00:02.6]} 48...
Na2+ {[%clk 0:00:04.9]} 49. Kb2 {[%clk 0:00:02.5]} 49... c1=Q# {[%clk
0:00:05.8]} 0-1